bitfinex-derivatives/quotes_ETHF0:USTF0_20251117
["timestamp","ask_amount","ask_price","bid_price","bid_amount"]
[1763375345498,3.4434,3195.9,3195.8,0.00254559]
[1763375346199,3.4434,3195.9,3195.8,0.25084559]
[1763375346693,0.50734,3195.7,3195.2,3.2078]
[1763375347210,0.2356,3195.3,3195.2,3.4561]
[1763375347707,3.4434,3195.3,3195.2,0.25195843]
[1763375347900,0.50749,3194.8,3194.3,3.2078]
[1763375348104,0.2356,3194.4,3194.3,3.4561]
[1763375348499,3.2078,3194.9,3194.3,3.4561]
[1763375348799,0.64916,3195.0,3194.3,0.2483]
[1763375349004,3.71528,3194.9,3194.4,0.2483]
[1763375349200,3.2078,3194.9,3194.4,0.2483]
[1763375350303,3.2078,3194.9,3194.3,0.00311848]
[1763375350304,3.2078,3194.9,3194.5,0.1389]
[1763375350503,3.4434,3194.9,3194.8,0.2483]
[1763375350800,0.00346335,3195.0,3194.9,0.2483]
[1763375354612,3.21248875,3195.8,3195.7,0.2483]
[1763375354915,3.21248875,3195.8,3195.0,0.1389]
[1763375355412,3.44808875,3195.8,3195.7,0.2483]
[1763375355609,3.45125443,3195.8,3195.7,0.2483]
[1763375356207,3.45125443,3195.8,3195.5,0.1389]
[1763375356208,0.2356,3195.6,3195.5,0.3872]
[1763375357210,0.2356,3195.6,3195.5,0.2483]
[1763375360108,0.2356,3195.6,3195.5,0.3926]
[1763375360410,3.21565443,3195.8,3195.7,0.2247]
[1763375362009,0.00785443,3195.8,3195.7,0.2247]
[1763375364012,3.2078,3196.2,3196.1,0.2247]
[1763375364412,3.2078,3196.7,3196.1,3.4325]
[1763375365110,0.2376,3196.2,3196.1,0.22938875]
[1763375366519,3.45334358,3196.7,3196.6,0.2247]
[1763375366816,3.45334358,3196.7,3196.6,0.00358732]
[1763375367009,3.96052358,3196.7,3196.6,0.00358732]
[1763375367208,4.70589921,3196.7,3196.6,0.00358732]
[1763375369323,0.2376,3196.2,3196.1,0.22938875]
[1763375370017,0.2376,3196.5,3196.4,0.2247]
[1763375370316,1.25430212,3196.6,3196.5,0.2247]
[1763375370513,0.98470212,3196.6,3196.5,0.2247]
[1763375370713,0.74710212,3196.6,3196.5,0.369]
[1763375372221,0.98470212,3196.6,3196.5,0.369]
[1763375372428,0.98470212,3196.6,3196.5,0.2247]
[1763375373123,0.2376,3196.5,3196.4,0.00302219]
[1763375373308,0.3832,3196.5,3196.4,0.00302219]
[1763375373713,0.89042,3196.5,3196.4,0.00302219]
[1763375373923,1.63752212,3196.5,3196.4,0.00302219]
[1763375376323,1.13030212,3196.5,3196.4,0.22772219]
[1763375376524,1.63752212,3196.5,3196.4,0.22772219]
[1763375377521,1.13030212,3196.5,3196.4,0.22772219]
[1763375377922,0.2376,3196.5,3196.4,0.22772219]
[1763375378125,0.98470212,3196.5,3196.4,0.22772219]
[1763375379123,0.2376,3196.5,3196.4,0.22772219]
[1763375379322,1.63752212,3196.5,3196.4,0.00302219]
[1763375379626,0.98470212,3196.5,3196.4,0.22772219]
[1763375379826,0.2376,3196.5,3196.4,0.22772219]
[1763375380017,1.49192212,3196.5,3196.4,0.22772219]
[1763375380418,0.98470212,3196.5,3196.4,0.22772219]
[1763375380626,1.49192212,3196.5,3196.4,0.22772219]
[1763375380929,1.63752212,3196.5,3196.4,0.22772219]
[1763375381822,1.13030212,3196.5,3196.4,0.22772219]
[1763375382028,0.2376,3196.5,3196.4,0.22772219]
[1763375382630,0.74482,3196.5,3196.4,0.22772219]
[1763375382829,0.89042,3196.5,3196.4,0.22772219]
[1763375383024,0.89042,3196.5,3196.4,0.00302219]
[1763375385032,0.89042,3196.5,3196.4,0.22772219]
[1763375386126,0.89042,3196.5,3196.4,0.00302219]
[1763375387432,1.6401399,3196.5,3196.4,0.00302219]
[1763375387631,0.2376,3196.5,3196.4,0.22772219]
[1763375389935,0.3853,3196.5,3196.4,0.22772219]
[1763375390136,1.13625157,3196.5,3196.4,0.22772219]
[1763375390336,1.13625157,3196.5,3196.4,0.00302219]
[1763375392139,1.13625157,3196.5,3196.4,0.23182219]
[1763375393240,1.13625157,3196.5,3196.4,0.00302219]
[1763375393541,1.64347157,3196.5,3196.4,0.00302219]
[1763375394234,1.13625157,3196.5,3196.4,0.00302219]
[1763375395347,0.98855157,3196.5,3196.4,0.23182219]
[1763375395532,3.44814358,3196.7,3196.6,0.2288]
[1763375395730,4.19956411,3196.7,3196.6,0.2288]
[1763375395935,0.3799,3196.5,3196.4,0.23182219]
[1763375396135,0.3799,3196.5,3196.4,0.00302219]
[1763375396336,0.3799,3196.5,3196.4,0.23182219]
[1763375396735,1.63855004,3196.5,3196.4,0.00302219]
[1763375400142,1.13133004,3196.5,3196.4,0.00302219]
[1763375400350,0.3799,3196.5,3196.4,0.23182219]
[1763375400549,0.3799,3196.5,3196.4,0.00302219]
[1763375400747,0.88712,3196.5,3196.4,0.00302219]
[1763375400948,1.63855004,3196.5,3196.4,0.00302219]
[1763375401250,1.13133004,3196.5,3196.4,0.00302219]
[1763375401548,1.63855004,3196.5,3196.4,0.00302219]
[1763375402236,1.13133004,3196.5,3196.4,0.00302219]
[1763375402434,0.75143004,3196.5,3196.4,0.23182219]
[1763375402639,0.98383004,3196.5,3196.4,0.23182219]
[1763375402844,1.63855004,3196.5,3196.4,0.23182219]
[1763375403552,1.63855004,3196.5,3196.4,0.00302219]
[1763375404050,1.13133004,3196.5,3196.4,0.00302219]
[1763375404438,0.2324,3196.5,3196.4,0.23182219]
[1763375404844,0.98383004,3196.6,3196.5,0.3728]
[1763375405046,0.98383004,3196.6,3196.5,0.2288]
[1763375406353,0.75143004,3196.6,3196.5,0.3728]
[1763375406556,3.21574358,3196.7,3196.6,0.2288]
[1763375408255,3.44814358,3196.7,3196.6,0.2288]
[1763375408457,0.2324,3196.5,3196.4,0.23182219]
[1763375408753,3.44814358,3196.7,3196.6,0.2288]
[1763375409454,0.88732,3196.5,3196.4,0.00302219]
[1763375409968,1.6383703,3196.5,3196.4,0.00302219]
[1763375410461,1.1311503,3196.5,3196.4,0.00302219]
[1763375410660,1.1311503,3196.5,3196.4,0.23182219]
[1763375410958,0.2324,3196.5,3196.4,0.23182219]
[1763375411255,0.3801,3196.5,3196.4,0.00302219]
[1763375411456,1.6383703,3196.5,3196.4,0.00302219]
[1763375413058,0.7510503,3196.5,3196.4,0.23182219]
[1763375413362,3.21574358,3196.7,3196.6,0.2288]
[1763375413956,3.44814358,3196.7,3196.4,0.00302219]
[1763375414154,0.3801,3196.5,3196.4,0.23182219]
[1763375414360,0.2324,3196.5,3196.4,0.23182219]
[1763375415753,0.3801,3196.5,3196.4,0.00302219]
[1763375415954,0.88732,3196.5,3196.4,0.00302219]
[1763375416664,0.3801,3196.5,3196.4,0.00302219]
[1763375416961,0.88732,3196.5,3196.4,0.00302219]
[1763375417162,1.63779381,3196.5,3196.4,0.00302219]
[1763375419355,1.63779381,3196.5,3195.6,3.2078]
[1763375419356,0.2296,3195.7,3195.6,3.2078]
[1763375419561,0.2296,3195.7,3195.6,3.4346]
[1763375420269,0.2296,3195.7,3195.6,3.43685882]
[1763375423073,0.73694,3195.7,3195.6,3.21005882]
[1763375423268,0.73694,3195.7,3195.6,0.00225882]
[1763375424163,1.48718413,3195.7,3195.6,0.00225882]
[1763375424975,0.50742,3195.3,3194.7,3.2078]
[1763375425362,3.3502,3195.5,3194.7,3.2078]
[1763375425565,0.2296,3194.8,3194.7,3.2078]
[1763375425968,0.73709,3194.8,3194.7,3.21156927]
[1763375426167,0.73709,3194.8,3194.7,0.00376927]
[1763375426463,0.73709,3194.8,3193.7,2.2741864]
[1763375426464,0.73725,3193.8,3193.7,0.03131214]
[1763375426668,3.4374,3193.8,3193.7,0.03131214]
[1763375427274,3.44028512,3193.8,3193.7,0.03463696]
[1763375427464,3.44028512,3193.8,3192.9,3.2078]
[1763375427465,0.2296,3193.0,3192.9,3.4346]
[1763375427770,0.2296,3193.0,3192.9,3.2078]
[1763375427968,0.2296,3193.0,3192.9,3.4346]
[1763375428566,0.00469667,3193.3,3192.9,3.4346]
[1763375428567,0.00469667,3193.3,3192.9,3.43771518]
[1763375429073,0.00469667,3193.3,3193.2,0.2268]
[1763375430569,0.2296,3193.1,3193.0,0.2268]
[1763375430969,0.2296,3193.0,3192.9,3.21091518]
[1763375431271,0.2296,3193.0,3192.9,3.43771518]
[1763375431473,0.2296,3193.0,3192.9,0.00311518]
[1763375431773,0.00469667,3193.3,3192.9,0.22991518]
[1763375432070,0.2296,3193.0,3192.9,0.22991518]
[1763375432968,0.23429667,3193.3,3193.2,0.2268]
[1763375433175,0.00469667,3193.3,3193.2,0.2268]
[1763375436466,3.21068512,3193.8,3193.7,0.2268]
[1763375436669,3.44028512,3193.8,3193.7,0.2268]
[1763375436871,0.2296,3193.6,3193.5,0.2268]
[1763375437071,3.44028512,3193.8,3193.7,0.2268]
[1763375437572,0.2296,3193.5,3193.4,3.21249667]
[1763375437776,0.2296,3193.5,3193.4,3.43929667]
[1763375438175,3.44028512,3193.8,3193.7,0.2268]
[1763375438371,0.2296,3193.6,3193.4,3.21249667]
[1763375438571,0.2296,3193.5,3193.4,3.43929667]
[1763375438784,3.21068512,3193.8,3193.4,3.43929667]
[1763375439181,0.2296,3193.5,3193.4,3.43929667]
[1763375439577,3.21068512,3193.8,3193.4,3.43929667]
[1763375439880,3.21068512,3193.8,3193.7,0.2268]
[1763375440577,3.44028512,3193.8,3193.7,0.2268]
[1763375440786,0.2296,3193.6,3193.5,0.3655]
[1763375440981,0.2296,3193.6,3193.5,0.2268]
[1763375441285,3.44028512,3193.8,3193.7,0.2268]
[1763375441584,0.2296,3193.6,3193.5,0.3655]
[1763375441984,0.2296,3193.6,3193.5,0.2268]
[1763375443184,3.21068512,3193.8,3193.7,0.2268]
[1763375443386,3.44028512,3193.8,3193.7,0.2268]
[1763375443586,0.2296,3193.6,3193.5,0.2268]
[1763375444085,0.2296,3193.6,3193.5,0.3655]
[1763375444284,3.21068512,3193.8,3193.7,0.2268]
[1763375445580,3.44028512,3193.8,3193.7,0.2268]
[1763375446176,0.2296,3193.6,3193.5,0.2268]
[1763375447793,0.87969,3193.5,3193.4,3.21249667]
[1763375447978,0.87969,3193.5,3193.4,0.00469667]
[1763375448991,0.372,3193.5,3193.4,0.00469667]
[1763375449191,0.87969,3193.5,3193.4,0.00469667]
[1763375449788,0.2296,3193.5,3193.4,0.23049667]
[1763375449979,0.2288,3193.6,3193.5,0.3651]
[1763375451184,3.21068512,3193.8,3193.5,0.3651]
[1763375451185,3.43948512,3193.8,3193.7,0.2258]
[1763375451386,3.21068512,3193.8,3193.7,0.2258]
[1763375451583,0.00288512,3193.8,3193.7,0.2258]
[1763375451783,0.23168512,3193.8,3193.7,0.2258]
[1763375451983,0.2288,3193.6,3193.5,3.2078]
[1763375452995,0.2288,3193.6,3193.5,3.4336]
[1763375453295,0.2288,3193.6,3193.5,3.5729]
[1763375453494,0.23168512,3193.8,3193.7,0.2258]
[1763375453793,0.3781,3193.5,3193.4,0.00469667]
[1763375455097,0.2288,3193.5,3193.4,0.23049667]
[1763375455296,0.98424645,3193.6,3193.5,0.2258]
[1763375455995,1.49192645,3193.6,3193.5,0.2258]
[1763375456196,0.98424645,3193.6,3193.5,0.3651]
[1763375456498,0.73933512,3193.8,3193.7,0.2258]
[1763375456699,1.49512012,3193.8,3193.7,0.2258]
[1763375457301,0.2288,3193.5,3193.4,0.00469667]
[1763375457500,0.2288,3193.5,3193.4,0.23049667]
[1763375458608,0.75573205,3193.6,3193.5,0.3651]
[1763375458904,0.9846563,3193.7,3193.6,0.2258]
[1763375459209,0.7558563,3193.7,3193.6,0.2258]
[1763375460010,0.9846563,3193.7,3193.6,0.2258]
[1763375460312,0.7558563,3193.7,3193.6,0.2258]
[1763375460611,0.9846563,3193.7,3193.6,0.2258]
[1763375460804,0.7558563,3193.7,3193.6,0.2258]
[1763375460999,0.00288512,3193.8,3193.7,0.2258]
[1763375461715,0.23168512,3193.8,3193.7,0.2258]
[1763375462208,0.98772579,3193.8,3193.7,0.2258]
[1763375462597,0.23168512,3193.8,3193.7,0.2258]
[1763375463002,0.98772579,3193.8,3193.7,0.2258]
[1763375463202,0.2288,3193.5,3193.4,0.00469667]
[1763375463505,0.3781,3193.5,3193.4,0.00469667]
[1763375463804,1.13454551,3193.5,3193.4,0.00469667]
[1763375465209,0.3781,3193.5,3193.4,0.00469667]
[1763375465512,1.13454551,3193.5,3193.4,0.00469667]
[1763375466908,4.85003551,3193.5,3193.4,0.00469667]
[1763375470616,0.2288,3192.4,3192.3,2.24287426]
[1763375470912,0.1493,3192.5,3191.8,3.2078]
[1763375470913,0.7367,3192.3,3191.8,3.2078]
[1763375471510,0.73673,3192.1,3192.0,0.3651]
[1763375471710,0.2288,3192.1,3192.0,0.36790429]
[1763375472806,0.73672,3192.1,3192.0,0.36790429]
[1763375473008,0.73672,3192.1,3192.0,0.00280429]
[1763375477116,0.2288,3192.1,3192.0,0.36790429]
[1763375477321,0.23349667,3192.4,3192.3,0.2258]
[1763375478523,0.00469667,3192.4,3192.3,0.2258]
[1763375478914,0.23199667,3192.4,3192.3,0.2258]
[1763375480224,0.2273,3192.1,3192.0,0.39130429]
[1763375480916,0.73522,3192.1,3192.0,0.00280429]
[1763375482319,0.2273,3192.1,3192.0,0.00280429]
[1763375482919,0.73522,3192.1,3192.0,0.00280429]
[1763375483217,0.2273,3192.1,3192.0,0.00280429]
[1763375483421,3.7157,3192.2,3192.1,0.2492]
[1763375483621,3.943,3192.2,3192.1,0.2492]
[1763375483822,0.73522,3192.1,3192.0,0.15040429]
[1763375484722,0.73522,3192.1,3192.0,0.00280429]
[1763375485122,0.2273,3192.1,3192.0,0.00280429]
[1763375485323,0.2273,3192.1,3192.0,0.39960429]
[1763375485829,0.00469667,3192.4,3192.3,0.2492]
[1763375486032,0.23199667,3192.4,3192.3,0.2492]
[1763375486623,0.00469667,3192.4,3192.3,0.2492]
[1763375488229,0.23199667,3192.4,3192.3,0.2492]
[1763375489124,0.2273,3192.1,3192.0,0.39960429]
[1763375490332,0.51256667,3192.4,3192.3,0.2492]
[1763375490333,0.00469667,3192.4,3192.3,0.2492]
[1763375490533,0.23199667,3192.4,3192.3,0.2492]
[1763375493724,0.00469667,3192.4,3192.3,0.2492]
[1763375494737,0.23199667,3192.4,3192.3,0.2492]
[1763375496428,0.00469667,3192.4,3192.3,0.2492]
[1763375497934,0.00469667,3192.4,3192.3,3.457]
[1763375498528,0.73501,3193.4,3193.3,0.2492]
[1763375498727,1.4968827,3193.4,3193.3,0.2492]
[1763375500038,0.9891727,3193.4,3193.3,0.2492]
[1763375500237,1.4968827,3193.4,3193.3,0.2492]
[1763375500927,0.9891727,3193.4,3193.3,0.2492]
[1763375501134,1.4968827,3193.4,3193.3,0.2492]
[1763375502133,0.9891727,3193.4,3193.3,0.2492]
[1763375502439,0.73501,3193.4,3193.3,0.2492]
[1763375503438,0.2273,3193.1,3193.0,0.15229667]
[1763375503645,0.2273,3193.1,3193.0,0.00469667]
[1763375504038,0.2273,3193.1,3193.0,0.25389667]
[1763375504238,3.94286,3193.1,3193.0,0.00469667]
[1763375504930,3.94286,3193.1,3193.0,0.40149667]
[1763375505540,3.94286,3193.1,3193.0,0.25389667]
[1763375505746,3.94286,3193.1,3193.0,0.00469667]
[1763375506142,3.4351,3193.1,3193.0,0.00469667]
[1763375506744,3.4351,3193.1,3193.0,0.25389667]
[1763375506934,3.2078,3193.1,3193.0,0.40149667]
[1763375507141,0.73504,3193.3,3193.2,0.2492]
[1763375507441,0.2273,3193.3,3193.2,0.2492]
[1763375507635,0.50771,3193.4,3193.3,0.2492]
[1763375507846,3.4351,3193.5,3193.4,0.2492]
[1763375508549,0.2309,3193.3,3193.2,0.232]
[1763375509138,0.2309,3193.1,3193.0,0.38429667]
[1763375509748,3.4387,3193.5,3193.4,0.232]
[1763375509949,3.5752,3193.5,3193.0,0.15229667]
[1763375510138,0.50771,3193.4,3193.0,0.15229667]
[1763375510749,3.7155,3193.5,3193.0,0.15229667]
[1763375511546,3.9464,3193.5,3193.4,0.232]
[1763375512244,3.2078,3193.5,3193.4,0.232]
[1763375513544,3.71549,3193.5,3193.4,0.232]
[1763375513741,3.4387,3193.5,3193.4,0.232]
[1763375513947,0.73863,3193.4,3193.0,0.15229667]
[1763375514450,0.50773,3193.3,3193.0,0.15229667]
[1763375514650,3.2078,3193.5,3193.3,0.232]
[1763375514847,3.4387,3193.5,3193.4,0.232]
[1763375515152,3.9464,3193.5,3193.0,0.15229667]
[1763375515748,3.4387,3193.5,3193.4,0.232]
[1763375517440,3.94639,3193.5,3193.0,0.15229667]
[1763375517647,0.2309,3193.1,3193.0,0.37819667]
[1763375518248,0.50771,3193.4,3193.0,0.37819667]
[1763375518556,0.2309,3193.1,3193.0,0.37819667]
[1763375519248,0.2309,3193.1,3193.0,0.00469667]
[1763375520155,0.2309,3193.1,3193.0,0.23669667]
[1763375520655,0.2309,3193.1,3193.0,0.37819667]
[1763375521860,3.2078,3193.5,3193.4,0.232]
[1763375522955,3.4387,3193.5,3193.4,0.232]
[1763375523354,3.94639,3193.5,3193.4,0.232]
[1763375523842,3.4387,3193.5,3193.4,0.232]
[1763375524047,3.94639,3193.5,3193.4,0.232]
[1763375524249,3.4387,3193.5,3193.4,0.232]
[1763375524660,3.2078,3193.5,3193.4,0.232]
[1763375527464,3.4387,3193.5,3193.4,0.232]
[1763375527956,3.94639,3193.5,3193.4,0.232]
[1763375528163,3.4387,3193.5,3193.4,0.232]
[1763375528355,0.00469667,3193.7,3193.6,0.232]
[1763375529262,0.00469667,3193.7,3193.6,3.4398]
[1763375530459,1.35376997,3195.2,3195.1,0.232]
[1763375530669,0.2309,3195.2,3195.1,0.232]
[1763375530958,0.2309,3194.8,3194.7,3.2078]
[1763375531160,0.2309,3194.8,3194.5,0.38936211]
[1763375531361,0.2309,3194.8,3194.7,0.232]
[1763375531659,0.23495296,3194.8,3194.7,0.23558432]
[1763375533360,0.00405296,3194.8,3194.7,0.23558432]
[1763375535165,3.4387,3195.7,3195.6,0.232]
[1763375536161,0.23423424,3195.7,3195.6,0.232]
[1763375536365,0.00333424,3195.7,3195.6,0.232]
[1763375536760,0.00469667,3196.0,3195.9,0.232]
[1763375536956,0.2309,3195.7,3195.6,3.4398]
[1763375537158,0.00469667,3196.0,3195.6,3.4398]
[1763375537461,0.00469667,3196.0,3195.9,0.232]
[1763375537859,0.00695786,3196.0,3195.9,0.232]
[1763375538861,0.23785786,3196.0,3195.9,0.232]
[1763375540668,0.23785786,3196.0,3195.6,3.2078]
[1763375540669,0.74515786,3196.0,3195.6,3.2078]
[1763375540870,0.2424,3195.7,3195.6,3.4528]
[1763375541067,0.2424,3195.7,3195.6,0.245]
[1763375541571,0.74974,3195.7,3195.6,0.245]
[1763375541770,0.2424,3195.3,3195.2,3.2078]
[1763375542671,0.2424,3195.3,3195.2,3.4528]
[1763375544468,0.74981,3195.3,3195.2,3.4528]
[1763375545165,0.2424,3195.3,3195.2,3.4528]
[1763375545468,0.2424,3195.6,3195.5,0.391]
[1763375546467,0.74989,3194.8,3194.7,0.00358432]
[1763375546765,0.74989,3194.8,3194.7,0.24858432]
[1763375547770,0.2424,3194.8,3194.7,0.24858432]
[1763375547967,0.74989,3194.8,3194.7,0.24858432]
[1763375549679,3.4502,3195.5,3195.4,0.245]
[1763375550277,3.2078,3195.5,3195.4,0.245]
[1763375550568,3.2078,3195.9,3195.8,0.245]
[1763375550769,3.71511,3195.9,3195.8,0.245]
[1763375550974,3.2078,3195.9,3195.8,0.245]
[1763375551174,3.95751,3195.9,3195.8,0.245]
[1763375551478,3.4502,3195.9,3195.8,0.245]
[1763375552070,3.95751,3195.9,3195.8,0.245]
[1763375552376,0.50733,3195.8,3195.5,0.146]
[1763375552580,3.71512,3195.9,3195.5,0.146]
[1763375553076,3.2078,3195.9,3195.5,0.146]
[1763375553270,3.4502,3195.9,3195.8,0.245]
[1763375554679,3.2078,3195.9,3195.8,0.245]
[1763375554978,3.95751,3195.9,3195.5,0.146]
[1763375557080,0.2424,3195.6,3195.5,0.391]
[1763375557980,0.2424,3195.4,3195.3,3.4528]
[1763375558182,0.50733,3195.8,3195.3,3.4528]
[1763375558778,0.2424,3195.4,3195.3,3.2078]
[1763375559885,0.74981,3195.4,3195.0,0.146]
[1763375560283,0.2424,3195.4,3195.0,0.146]
[1763375560487,0.7498,3195.4,3195.0,0.146]
[1763375560680,0.2424,3195.4,3195.0,0.146]
[1763375561685,0.2424,3195.1,3195.0,0.391]
[1763375562080,0.50739,3195.5,3195.0,0.391]
[1763375562286,0.50739,3195.4,3195.0,0.391]
[1763375563283,0.2424,3195.1,3195.0,0.391]
[1763375567178,0.5074,3195.4,3195.0,0.391]
[1763375567385,0.7498,3195.4,3195.3,0.245]
[1763375567894,0.50742,3195.3,3195.0,0.146]
[1763375568191,0.74982,3195.3,3195.2,0.245]
[1763375568991,0.2424,3195.1,3195.0,0.391]
[1763375570590,3.2078,3195.9,3195.0,0.391]
[1763375570893,0.50738,3195.5,3195.0,0.391]
[1763375571389,3.2078,3195.9,3195.0,0.391]
[1763375571593,0.50738,3195.5,3195.0,0.391]
[1763375571887,0.2272,3195.5,3195.4,0.2265]
[1763375572091,0.73455,3195.7,3195.6,0.2265]
[1763375572291,0.98715765,3195.7,3195.6,0.2265]
[1763375572594,1.49449765,3195.7,3195.6,0.2265]
[1763375573386,0.50738,3195.5,3195.0,0.146]
[1763375574685,3.2078,3195.9,3195.0,0.146]
[1763375574896,0.5074,3195.4,3195.0,0.146]
[1763375575194,0.2272,3195.0,3194.9,3.2078]
[1763375576592,0.2272,3194.8,3194.7,0.23008432]
[1763375577196,0.50742,3195.3,3194.7,0.23008432]
[1763375577500,3.3443,3195.5,3194.7,0.23008432]
[1763375577501,0.5074,3195.4,3194.7,0.23008432]
[1763375578292,0.50741,3195.3,3194.7,0.23008432]
[1763375579190,0.2272,3195.3,3195.2,0.2265]
[1763375579396,0.98751548,3195.4,3195.3,0.2265]
[1763375579895,0.2272,3195.1,3195.0,0.3754]
[1763375580101,3.435,3195.5,3195.4,0.2265]
[1763375580397,4.19550901,3195.5,3195.0,0.1489]
[1763375580599,0.76050901,3195.4,3195.0,0.1489]
[1763375580993,0.2272,3195.1,3195.0,0.3754]
[1763375581700,0.76050901,3195.4,3195.0,0.3754]
[1763375582998,0.98770901,3195.4,3195.3,0.2265]
[1763375583999,0.98770901,3195.4,3195.0,0.1489]
[1763375584499,0.98770901,3195.4,3195.3,0.2265]
[1763375584703,0.2272,3195.1,3195.0,0.3754]
[1763375584888,0.2272,3195.1,3194.7,0.00358432]
[1763375585496,0.2272,3194.8,3194.7,0.23008432]
[1763375586099,3.3443,3195.5,3194.7,0.23008432]
[1763375586394,0.76084333,3195.4,3194.7,0.23008432]
[1763375587302,0.76084333,3195.4,3194.7,2.47937596]
[1763375587602,1.26824333,3195.4,3194.7,2.47937596]
[1763375587801,1.26825333,3195.3,3194.7,2.47937596]
[1763375588105,3.3443,3195.5,3194.7,2.47937596]
[1763375588106,0.5074,3195.4,3194.7,2.47937596]
[1763375588295,0.2272,3194.8,3194.7,0.00358432]
[1763375588601,0.0847,3195.0,3194.9,0.2265]
[1763375588602,0.98830743,3195.0,3194.9,0.2265]
[1763375589204,0.2272,3194.8,3194.7,0.23008432]
[1763375590701,3.2078,3195.5,3195.4,0.2265]
[1763375590901,3.435,3195.5,3195.4,0.2265]
[1763375591105,3.2078,3195.9,3195.8,0.2265]
[1763375591905,3.435,3195.9,3195.8,0.2265]
[1763375592708,0.2272,3195.6,3195.5,0.3754]
[1763375597105,0.2272,3195.4,3195.3,3.4343]
[1763375597604,0.50733,3195.8,3195.3,3.4343]
[1763375598809,0.75133,3195.8,3195.7,0.2343]
[1763375599010,0.2364,3195.4,3195.3,3.4397]
[1763375599311,0.2364,3195.1,3195.0,0.3808]
[1763375599612,0.50738,3195.5,3195.0,0.3808]
[1763375599613,0.2364,3195.4,3195.3,0.2319]
[1763375600911,3.4442,3195.6,3195.5,0.37]
[1763375601412,3.4442,3195.6,3195.5,0.2319]
[1763375602609,3.4442,3195.6,3195.5,0.37]
[1763375605715,3.2078,3195.6,3195.5,0.37]
[1763375606417,0.00695786,3196.0,3195.5,0.37]
[1763375606620,0.76742215,3196.0,3195.5,0.37]
[1763375606919,0.24335786,3196.0,3195.9,0.2319]
[1763375607307,0.24335786,3196.0,3195.5,0.1381]
[1763375607515,0.75066786,3196.0,3195.5,0.1381]
[1763375608022,0.24335786,3196.0,3195.5,0.1381]
[1763375608223,0.24335786,3196.0,3195.9,0.2319]
[1763375608721,0.24335786,3196.0,3195.5,0.1381]
[1763375608916,0.24335786,3196.0,3195.9,0.2319]
[1763375610119,0.24335786,3196.0,3195.5,0.1381]
[1763375611219,0.75065786,3196.0,3195.5,0.1381]
[1763375611423,0.24335786,3196.0,3195.5,0.1381]
[1763375612825,0.75065786,3196.0,3195.5,0.1381]
[1763375613125,0.24335786,3196.0,3195.5,0.1381]
[1763375613327,0.75065786,3196.0,3195.5,0.1381]
[1763375613522,0.24335786,3196.0,3195.5,0.1381]
[1763375615120,0.75065786,3196.0,3195.5,0.1381]
[1763375615927,0.2364,3195.6,3195.5,0.37]
[1763375617832,0.65115786,3196.0,3195.5,0.37]
[1763375618528,0.14385786,3196.0,3195.5,0.37]
[1763375618728,0.24335786,3196.0,3195.9,0.2319]
[1763375618931,0.00695786,3196.0,3195.9,0.2319]
[1763375620033,3.4442,3196.9,3196.8,0.2319]
[1763375620226,3.2078,3196.9,3196.8,0.2319]
[1763375620735,0.2364,3196.6,3196.5,0.37]
[1763375621137,0.23899506,3196.6,3196.5,0.37]
[1763375621528,0.00259506,3196.6,3196.5,0.37]
[1763375622127,0.1403,3198.0,3197.9,0.2319]
[1763375622438,0.3767,3198.0,3197.9,0.2319]
[1763375623136,0.14330201,3198.0,3197.9,0.2352306]
[1763375623739,0.00300201,3198.0,3197.9,0.2352306]
[1763375625337,0.14330201,3198.0,3197.9,0.2352306]
[1763375626633,0.37970201,3198.0,3197.9,0.0033306]
[1763375626838,0.37970201,3198.0,3197.9,0.2352306]
[1763375630433,0.37970201,3198.0,3197.9,0.0033306]
[1763375630628,0.88668201,3198.0,3197.9,0.0033306]
[1763375636344,0.37970201,3198.0,3197.9,0.0033306]
[1763375636550,0.88668201,3198.0,3197.9,0.0033306]
[1763375640348,0.37970201,3198.0,3197.9,0.0033306]
[1763375640942,0.37930201,3198.0,3197.9,0.2477306]
[1763375641142,0.14590201,3198.0,3197.9,0.2477306]
[1763375641641,0.00300201,3198.0,3197.9,0.2477306]
[1763375641844,3.2925,3199.0,3198.6,0.2444]
[1763375642251,3.3315,3199.5,3198.9,0.2444]
[1763375642452,3.5675,3199.5,3199.4,0.2444]
[1763375642755,3.57046808,3199.5,3199.4,0.2444]
[1763375643154,0.236,3199.2,3199.1,0.00468925]
[1763375644454,0.236,3199.2,3199.1,0.24908925]
[1763375645255,0.236,3199.2,3199.1,0.00468925]
[1763375645451,0.74279,3199.2,3199.1,0.00468925]
[1763375647847,0.236,3199.2,3199.1,0.00468925]
[1763375648250,3.33446808,3199.5,3199.1,0.24908925]
[1763375648466,3.57046808,3199.5,3199.4,0.2444]
[1763375649152,0.36266808,3199.5,3199.4,3.4522]
[1763375649455,0.00296808,3199.5,3199.4,3.4522]
[1763375650252,0.00302402,3199.8,3199.7,0.2444]
[1763375650855,0.23902402,3199.8,3199.7,0.2444]
[1763375651364,0.24133111,3199.8,3199.7,0.2444]
[1763375655368,0.3789,3199.5,3199.4,3.4522]
[1763375656157,0.24133111,3199.8,3199.7,0.2444]
[1763375656465,0.1429,3199.5,3199.4,3.4522]
[1763375656661,0.3789,3199.5,3199.4,3.2078]
[1763375656871,0.88564,3199.5,3199.4,3.2078]
[1763375662370,0.2361,3199.2,3199.1,0.00468925]
[1763375663669,0.2361,3199.2,3199.1,0.23488925]
[1763375664866,0.1429,3199.5,3199.1,0.23488925]
[1763375665773,0.2361,3199.2,3199.1,0.23488925]
[1763375666369,0.64965,3199.5,3199.1,0.23488925]
[1763375666974,0.50677,3199.4,3199.1,0.23488925]
[1763375667269,0.2361,3199.2,3199.1,0.23488925]
[1763375669476,0.2361,3199.2,3199.1,0.00468925]
[1763375670373,0.2361,3198.7,3198.6,3.2078]
[1763375670572,0.3739,3198.5,3198.4,0.2302]
[1763375670769,0.1378,3198.5,3198.4,0.2302]